bitfinex/quotes_BTCUSD_20240827
["timestamp","ask_amount","ask_price","bid_price","bid_amount"]
[1724747828554,0.56050591,62860.0,62859.0,0.07043]
[1724747829020,0.55850591,62860.0,62859.0,0.07043]
[1724747829254,0.56050591,62860.0,62859.0,0.07043]
[1724747829479,0.55950591,62860.0,62859.0,0.07043]
[1724747829712,0.55850591,62860.0,62859.0,0.07043]
[1724747829926,0.56050591,62860.0,62859.0,0.07043]
[1724747830400,0.58544206,62860.0,62859.0,0.07043]
[1724747830640,0.58444206,62860.0,62859.0,0.07043]
[1724747831736,0.58344206,62860.0,62859.0,0.07043]
[1724747832170,0.58444206,62860.0,62859.0,0.07043]
[1724747833271,0.58544206,62860.0,62859.0,0.07043]
[1724747833501,0.58444206,62860.0,62859.0,0.07043]
[1724747833725,0.58544206,62860.0,62859.0,0.07043]
[1724747834388,0.58444206,62860.0,62859.0,0.07043]
[1724747835048,0.57844206,62860.0,62859.0,0.07043]
[1724747835955,0.57944206,62860.0,62859.0,0.07043]
[1724747838373,0.57844206,62860.0,62859.0,0.07043]
[1724747838593,0.57944206,62860.0,62859.0,0.07043]
[1724747839791,0.58034736,62860.0,62859.0,0.07043]
[1724747841088,0.58034736,62860.0,62859.0,0.13743]
[1724747841305,0.13410475,62860.0,62859.0,0.13743]
[1724747841535,0.02684145,62860.0,62859.0,0.13743]
[1724747842192,0.36091645,62860.0,62859.0,0.13743]
[1724747842408,0.13819945,62860.0,62859.0,0.13743]
[1724747842631,0.02684145,62860.0,62859.0,0.13743]
[1724747843563,0.36091645,62860.0,62859.0,0.13743]
[1724747843791,0.36091645,62860.0,62859.0,0.00823]
[1724747844009,0.58444206,62860.0,62859.0,0.00823]
[1724747845387,0.89412642,62860.0,62859.0,0.00823]
[1724747846299,0.67140942,62860.0,62859.0,0.00823]
[1724747846527,0.67040942,62860.0,62859.0,0.00823]
[1724747846743,1.00729027,62860.0,62859.0,0.00823]
[1724747848714,1.00929027,62860.0,62859.0,0.00823]
[1724747849159,1.00729027,62860.0,62859.0,0.00823]
[1724747849415,1.00929027,62860.0,62859.0,0.00823]
[1724747849633,1.01229027,62860.0,62859.0,0.00823]
[1724747853507,1.11229027,62860.0,62859.0,0.00823]
[1724747858610,1.05089027,62860.0,62859.0,0.00823]
[1724747859503,1.12211384,62860.0,62859.0,0.00823]
[1724747860589,1.05089027,62860.0,62859.0,0.00823]
[1724747863386,0.82817327,62860.0,62859.0,0.00823]
[1724747863598,0.94695855,62860.0,62859.0,0.00823]
[1724747863802,1.16967555,62860.0,62859.0,0.00823]
[1724747865777,1.23267555,62860.0,62859.0,0.00823]
[1724747866012,1.11389027,62860.0,62859.0,0.00823]
[1724747879902,1.23267556,62860.0,62859.0,0.00823]
[1724747881682,1.11389027,62860.0,62859.0,0.00823]
[1724747881904,1.23268752,62860.0,62859.0,0.00823]
[1724747882786,1.11389027,62860.0,62859.0,0.00823]
[1724747886223,1.05142373,62860.0,62859.0,0.00823]
[1724747886458,1.2810668,62860.0,62859.0,0.00823]
[1724747886705,1.36803416,62860.0,62859.0,0.00823]
[1724747887624,1.52829997,62860.0,62859.0,0.00823]
[1724747887857,1.52529997,62860.0,62859.0,0.00823]
[1724747888073,1.53729997,62860.0,62859.0,0.00823]
[1724747888728,1.52329997,62860.0,62859.0,0.00823]
[1724747888945,1.54929997,62860.0,62859.0,0.00823]
[1724747889402,1.53729997,62860.0,62859.0,0.00823]
[1724747889619,1.39103416,62860.0,62859.0,0.00823]
[1724747889838,1.55130596,62860.0,62859.0,0.00823]
[1724747890068,1.39103416,62860.0,62859.0,0.00823]
[1724747890537,1.55130597,62860.0,62859.0,0.00823]
[1724747890768,1.39103416,62860.0,62859.0,0.00823]
[1724747891818,1.5513111,62860.0,62859.0,0.00823]
[1724747892279,1.39103416,62860.0,62859.0,0.00823]
[1724747892501,1.55129392,62860.0,62859.0,0.00823]
[1724747900765,1.55126052,62860.0,62859.0,0.00823]
[1724747910007,1.55126375,62860.0,62859.0,0.00823]
[1724747910906,1.551271,62860.0,62859.0,0.00823]
[1724747911548,1.39103416,62860.0,62859.0,0.00823]
[1724747911989,1.61375116,62860.0,62859.0,0.00823]
[1724747912201,1.39103416,62860.0,62859.0,0.00823]
[1724747913110,1.55127871,62860.0,62859.0,0.00823]
[1724747915092,1.46331135,62860.0,62859.0,0.00823]
[1724747915309,1.55085182,62860.0,62859.0,0.00823]
[1724747915541,1.55127871,62860.0,62859.0,0.00823]
[1724747917586,1.55883416,62860.0,62859.0,0.00823]
[1724747917823,1.39103416,62860.0,62859.0,0.00823]
[1724747921357,1.55031518,62860.0,62859.0,0.00823]
[1724747921587,1.55131518,62860.0,62859.0,0.00823]
[1724747922468,1.46292093,62860.0,62859.0,0.00823]
[1724747922681,1.54988829,62860.0,62859.0,0.00823]
[1724747923387,1.38960727,62860.0,62859.0,0.00823]
[1724747923609,1.48688829,62860.0,62859.0,0.00823]
[1724747924498,1.32660727,62860.0,62859.0,0.00823]
[1724747926103,1.16193991,62860.0,62859.0,0.00823]
[1724747926333,1.21890727,62860.0,62859.0,0.00823]
[1724747926577,1.36360727,62860.0,62859.0,0.00823]
[1724747926796,1.39360727,62860.0,62859.0,0.00823]
[1724747928591,1.55388829,62860.0,62859.0,0.00823]
[1724747930659,1.39360727,62860.0,62859.0,0.00823]
[1724747930882,1.33000727,62860.0,62859.0,0.00823]
[1724747931106,1.33000727,62860.0,62859.0,0.13893]
[1724747931107,1.05185794,62860.0,62859.0,0.13893]
[1724747931337,1.1388253,62860.0,62859.0,0.13893]
[1724747931568,0.99619027,62860.0,62859.0,0.13893]
[1724747932530,0.98219027,62860.0,62859.0,0.00823]
[1724747932742,0.99619027,62860.0,62859.0,0.00823]
[1724747932962,1.15664055,62860.0,62859.0,0.00823]
[1724747933192,1.14264055,62860.0,62859.0,0.00823]
[1724747933400,1.13864055,62860.0,62859.0,0.00823]
[1724747933826,1.15264055,62860.0,62859.0,0.00823]
[1724747934251,1.12864055,62860.0,62859.0,0.00823]
[1724747934515,1.13964055,62860.0,62859.0,0.00823]
[1724747934734,1.15064055,62860.0,62859.0,0.00823]
[1724747934964,1.37335755,62860.0,62859.0,0.00823]
[1724747935183,1.36235755,62860.0,62859.0,0.00823]
[1724747935397,1.37335755,62860.0,62859.0,0.00823]
[1724747935862,1.36235755,62860.0,62859.0,0.00823]
[1724747936302,1.37335755,62860.0,62859.0,0.00823]
[1724747936539,1.38140727,62860.0,62859.0,0.00823]
[1724747937245,1.35940727,62860.0,62859.0,0.00823]
[1724747937467,1.38740727,62860.0,62859.0,0.00823]
[1724747937898,1.37340727,62860.0,62859.0,0.00823]
[1724747938835,1.35940727,62860.0,62859.0,0.00823]
[1724747939055,1.37340727,62860.0,62859.0,0.00823]
[1724747939769,1.38740727,62860.0,62859.0,0.00823]
[1724747940239,0.53742923,62860.0,62859.0,0.13893]
[1724747940515,0.0429053,62860.0,62859.0,0.13893]
[1724747940758,0.0429053,62860.0,62859.0,0.72191119]
[1724747941025,0.0009053,62863.0,62862.0,0.560375]
[1724747941265,0.0009053,62863.0,62862.0,0.94413484]
[1724747941514,0.02493809,62865.0,62864.0,0.61694639]
[1724747941742,0.02493809,62865.0,62864.0,0.79879127]
[1724747941974,0.02493809,62865.0,62864.0,0.81609981]
[1724747942200,0.02493809,62865.0,62864.0,0.82249127]
[1724747943622,0.02493809,62865.0,62864.0,0.82149127]
[1724747944082,0.02493809,62865.0,62864.0,0.83549127]
[1724747944533,0.02593809,62865.0,62864.0,0.84949127]
[1724747945261,0.02684339,62865.0,62864.0,0.84949127]
[1724747945492,0.02584339,62865.0,62864.0,0.83549127]
[1724747945967,0.02684339,62865.0,62864.0,0.84949127]
[1724747949050,0.00044339,62865.0,62864.0,1.04849327]
[1724747949298,0.1122213,62884.0,62864.0,0.128]
[1724747949299,0.111344,62868.0,62864.0,0.128]
[1724747949518,0.001,62875.0,62864.0,0.028]
[1724747949751,0.111343,62869.0,62864.0,0.028]
[1724747949986,0.111339,62871.0,62865.0,0.111349]
[1724747950212,0.111345,62868.0,62865.0,0.0665]
[1724747950427,0.001,62875.0,62865.0,0.0665]
[1724747950428,0.111341,62870.0,62865.0,0.0665]
[1724747950870,0.111341,62870.0,62866.0,0.023]
[1724747951103,0.111338,62872.0,62866.0,0.134346]
[1724747951335,0.001,62875.0,62866.0,0.134346]
[1724747951336,0.111339,62871.0,62866.0,0.134346]
[1724747951555,0.111339,62871.0,62866.0,0.023]
[1724747952232,0.02493072,62870.0,62866.0,0.023]
[1724747952710,0.02493072,62870.0,62866.0,0.134346]
[1724747952925,0.02493072,62870.0,62866.0,0.148346]
[1724747953571,0.02493072,62870.0,62866.0,0.162346]
[1724747953795,0.02493072,62870.0,62867.0,0.0665]
[1724747954074,0.02493072,62870.0,62868.0,0.023]
[1724747954976,0.02493072,62870.0,62869.0,0.111342]
[1724747955202,0.02493072,62870.0,62869.0,0.200842]
[1724747956957,0.02493072,62870.0,62869.0,0.214842]
[1724747957391,0.02583602,62870.0,62869.0,0.228842]
[1724747960996,0.02583602,62870.0,62869.0,0.451527]
[1724747961211,0.02583602,62870.0,62869.0,0.646212]
[1724747961440,0.02583602,62870.0,62869.0,0.660212]
[1724747961664,0.02583602,62870.0,62869.0,0.674212]
[1724747962094,0.02583602,62870.0,62869.0,0.81905688]
[1724747962749,0.02583602,62870.0,62869.0,0.80505688]
[1724747963638,0.02583602,62870.0,62869.0,0.81905688]
[1724747964319,0.02583602,62870.0,62869.0,0.83305688]
[1724747966049,0.02583602,62870.0,62869.0,0.91993724]
[1724747966482,0.02583602,62870.0,62869.0,1.14262224]
[1724747970694,0.02583602,62870.0,62869.0,1.24262224]
[1724747970911,0.02583602,62870.0,62869.0,1.46530724]
[1724747971127,0.0009053,62884.0,62883.0,0.623087]
[1724747971376,0.0009053,62884.0,62883.0,1.11444724]
[1724747971577,0.0009053,62884.0,62883.0,1.21444724]
[1724747973515,0.0009053,62884.0,62883.0,0.531452]
[1724747973752,0.0009053,62884.0,62883.0,0.152317]
[1724747974034,0.0009053,62884.0,62883.0,0.144317]
[1724747974239,0.0009053,62884.0,62883.0,0.014]
[1724747974459,0.13714496,62884.0,62883.0,0.028]
[1724747974650,0.111317,62883.0,62878.0,0.111326]
[1724747975336,0.13714496,62884.0,62878.0,0.111326]
[1724747975548,0.13714496,62884.0,62883.0,0.014]
[1724747975760,0.13714496,62884.0,62883.0,0.037]
[1724747975977,0.02582896,62884.0,62883.0,0.037]
[1724747976204,0.02582896,62884.0,62883.0,0.04018006]
[1724747976437,0.02582896,62884.0,62883.0,0.148317]
[1724747976649,0.02582896,62884.0,62883.0,0.370952]
[1724747977168,0.02582896,62884.0,62883.0,0.356952]
[1724747977377,0.02582896,62884.0,62883.0,0.365952]
[1724747978025,0.02582896,62884.0,62883.0,0.369952]
[1724747978501,0.02582896,62884.0,62883.0,0.380952]
[1724747978963,0.02582896,62884.0,62883.0,0.367952]
[1724747979682,0.02582896,62884.0,62883.0,0.356952]
[1724747979911,0.02582896,62884.0,62883.0,0.369952]
[1724747980136,0.02582896,62884.0,62883.0,0.383952]
[1724747980364,0.02582896,62884.0,62883.0,0.370952]
[1724747980579,0.02582896,62884.0,62883.0,0.356952]
[1724747980812,0.02582896,62884.0,62883.0,0.370952]
[1724747981288,0.02582896,62884.0,62883.0,0.75243188]
[1724747981525,0.02582896,62884.0,62883.0,0.83293188]
[1724747982199,0.02582896,62884.0,62883.0,0.81893188]
[1724747982625,0.02582896,62884.0,62883.0,1.02756688]
[1724747982833,0.02582896,62884.0,62883.0,0.80493188]
[1724747983046,0.02582896,62884.0,62883.0,1.04156688]
[1724747983242,0.02582896,62884.0,62883.0,0.82815045]
[1724747983687,0.02582896,62884.0,62883.0,0.84215045]
[1724747983896,0.02582896,62884.0,62883.0,1.06478545]
[1724747984349,0.02582896,62884.0,62883.0,1.03678545]
[1724747984846,0.02582896,62884.0,62883.0,1.06478545]
[1724747985058,0.02582896,62884.0,62883.0,1.05078545]
[1724747985274,0.02582896,62884.0,62883.0,1.06478545]
[1724747985474,0.02582896,62884.0,62883.0,1.05556688]
[1724747986132,0.02582896,62884.0,62883.0,0.83293188]
[1724747986344,0.02582896,62884.0,62883.0,0.347952]
[1724747986756,0.02582896,62884.0,62883.0,0.361952]
[1724747986977,0.09002896,62884.0,62883.0,0.361952]
[1724747987216,0.09002896,62884.0,62883.0,0.333952]
[1724747987664,0.09002896,62884.0,62883.0,0.384952]
[1724747987883,0.09002896,62884.0,62883.0,0.370952]
[1724747988125,0.09002896,62884.0,62883.0,0.356952]
[1724747988340,0.0651053,62884.0,62883.0,0.370952]
[1724747989082,0.0651053,62884.0,62883.0,0.148317]
[1724747989295,0.0651053,62884.0,62883.0,0.162317]
[1724747989744,0.0651053,62884.0,62883.0,0.384952]
[1724747990160,0.0651053,62884.0,62883.0,0.162317]
[1724747990367,0.1425053,62884.0,62883.0,0.051]
[1724747990577,0.2538213,62884.0,62883.0,0.051]
[1724747994837,0.1425053,62884.0,62883.0,0.051]
[1724747995507,0.1425053,62884.0,62883.0,0.037]
[1724747996128,0.1425053,62884.0,62883.0,0.023]
[1724747996356,0.2538223,62884.0,62881.0,0.023]
[1724747996590,0.2538223,62884.0,62883.0,0.014]
[1724747996788,0.2538223,62884.0,62883.0,0.037]
[1724747997242,0.2538223,62884.0,62883.0,0.023]
[1724747997453,0.2538223,62884.0,62883.0,0.014]
[1724747997661,0.6990863,62884.0,62883.0,0.014]
[1724747997882,0.6990863,62884.0,62881.0,0.014]
[1724747997883,0.333958,62882.0,62881.0,0.014]
[1724747998093,0.188721,62881.0,62880.0,0.00019144]
[1724747998930,0.21364871,62881.0,62880.0,0.00019144]
[1724747999388,0.43629071,62881.0,62880.0,0.00019144]
[1724747999602,0.49749071,62881.0,62880.0,0.00019144]
[1724747999816,0.49749071,62881.0,62880.0,0.00819144]
[1724748000022,0.49749071,62881.0,62880.0,0.03119144]
[1724748000749,0.49749071,62881.0,62880.0,0.04119144]
[1724748000974,0.49749071,62881.0,62880.0,0.03319144]
[1724748001448,0.49749071,62881.0,62880.0,0.03619144]
[1724748001670,0.49749071,62881.0,62880.0,0.01319144]
[1724748001890,0.49749071,62881.0,62880.0,0.02719144]
[1724748002134,0.49749071,62881.0,62880.0,0.01319144]
[1724748002374,0.72013271,62881.0,62880.0,0.01319144]
[1724748002612,0.72013271,62881.0,62880.0,0.00019144]
[1724748003132,0.72013271,62881.0,62880.0,0.00819144]
[1724748003604,0.72013271,62881.0,62880.0,0.01]
[1724748003827,0.49749071,62881.0,62880.0,0.023]
[1724748004531,0.16352771,62881.0,62878.0,0.111325]
[1724748004756,0.16352771,62881.0,62880.0,0.014]
[1724748004996,0.16352771,62881.0,62878.0,0.111325]
[1724748005225,0.16352771,62881.0,62880.0,0.023]
[1724748005441,0.16352771,62881.0,62880.0,0.014]
[1724748005702,0.16352771,62881.0,62880.0,0.037]
[1724748005921,0.16352771,62881.0,62880.0,0.049]
[1724748006589,0.16352771,62881.0,62880.0,0.035]
[1724748007039,0.16352771,62881.0,62880.0,0.046]
[1724748007496,0.16352771,62881.0,62880.0,0.035]
[1724748007715,0.16352771,62881.0,62880.0,0.049]
[1724748010330,0.16352771,62881.0,62880.0,0.04919144]
[1724748010559,0.02492771,62881.0,62880.0,0.04919144]
[1724748010831,0.02492771,62881.0,62880.0,0.16051444]
[1724748011072,0.02492771,62881.0,62880.0,0.04919144]
[1724748014273,0.111318,62883.0,62880.0,0.04919144]
[1724748014503,0.111318,62883.0,62881.0,0.023]
[1724748015992,0.111319,62882.0,62881.0,0.023]
[1724748016227,0.254619,62882.0,62881.0,0.023]
[1724748016468,0.254619,62882.0,62881.0,0.033]
[1724748016672,0.1433,62882.0,62881.0,0.033]
[1724748016873,0.1433,62882.0,62881.0,0.023]
[1724748017082,0.1433,62882.0,62881.0,0.047]
[1724748017308,0.1433,62882.0,62881.0,0.034]
[1724748017763,0.16822645,62882.0,62881.0,0.048]
[1724748018170,0.16913175,62882.0,62881.0,0.048]
[1724748018859,0.16913175,62882.0,62881.0,0.159321]
[1724748019058,0.09113175,62882.0,62881.0,0.159321]
[1724748019278,0.09113175,62882.0,62881.0,0.671105]
[1724748019279,0.02583175,62882.0,62881.0,0.671105]
[1724748019545,0.02583175,62882.0,62881.0,1.05259188]
[1724748020395,0.02583175,62882.0,62881.0,1.04159188]
[1724748020603,0.02583175,62882.0,62881.0,1.02759188]
[1724748021028,0.02583175,62882.0,62881.0,1.04159188]
[1724748021674,0.02583175,62882.0,62881.0,1.05559188]
[1724748022083,0.02583175,62882.0,62881.0,0.83294988]
[1724748026572,0.02563821,62882.0,62881.0,0.83294988]
[1724748027226,0.02563821,62882.0,62881.0,0.76644988]
[1724748027810,0.10233821,62882.0,62881.0,0.051]
[1724748027986,0.49839621,62882.0,62881.0,0.028]
[1724748029608,0.49839621,62882.0,62881.0,0.051]
[1724748030407,0.94467421,62882.0,62881.0,0.028]
[1724748030754,1.01591321,62882.0,62881.0,0.028]
[1724748030962,0.94467421,62882.0,62881.0,0.028]
[1724748031182,0.94467421,62882.0,62881.0,0.014]
[1724748031409,0.94467421,62882.0,62880.0,0.00019144]
[1724748031410,0.779247,62881.0,62880.0,0.00019144]
[1724748031613,0.9655328,62881.0,62880.0,0.00019144]
[1724748032006,1.1891748,62881.0,62880.0,0.00019144]
[1724748032222,0.695495,62871.0,62870.0,0.000823]
[1724748032680,0.919173,62871.0,62870.0,0.000823]
[1724748033366,0.919173,62871.0,62870.0,0.009823]
[1724748034691,0.919173,62871.0,62870.0,0.000823]
[1724748034939,0.919173,62871.0,62870.0,0.020823]
[1724748035130,0.919173,62871.0,62870.0,0.009823]
[1724748035337,0.919173,62871.0,62870.0,0.000823]
[1724748035552,0.919173,62871.0,62870.0,0.004823]
[1724748035763,0.919173,62871.0,62870.0,0.006823]
[1724748035979,0.919173,62871.0,62870.0,0.002823]
[1724748036201,0.919173,62871.0,62870.0,0.000823]
[1724748036616,0.920173,62871.0,62870.0,0.000823]
[1724748038276,0.919173,62871.0,62870.0,0.000823]
[1724748038719,0.921173,62871.0,62870.0,0.000823]
[1724748039223,0.919173,62871.0,62870.0,0.000823]
[1724748040614,1.253188,62871.0,62870.0,0.002823]
[1724748040830,1.253188,62871.0,62870.0,0.000823]
[1724748041279,1.253188,62871.0,62870.0,0.001823]
[1724748041280,1.254188,62871.0,62870.0,0.001823]
[1724748041951,1.254188,62871.0,62870.0,0.000823]
[1724748042158,1.253188,62871.0,62870.0,0.000823]
[1724748042385,1.254188,62871.0,62870.0,0.001823]
[1724748043705,1.254188,62871.0,62870.0,0.000823]
[1724748043939,1.253188,62871.0,62870.0,0.003823]
[1724748044365,1.253188,62871.0,62870.0,0.001823]
[1724748044566,1.253188,62871.0,62870.0,0.005823]
[1724748044777,1.253188,62871.0,62870.0,0.004823]
[1724748045186,1.253188,62871.0,62870.0,0.006823]
[1724748046961,1.253188,62871.0,62870.0,0.002823]
[1724748047189,1.253188,62871.0,62870.0,0.006823]
[1724748048075,1.253188,62871.0,62870.0,0.004823]
[1724748048741,1.253188,62871.0,62870.0,0.006823]
[1724748051788,1.253188,62871.0,62870.0,0.004823]
[1724748052021,1.253188,62871.0,62870.0,0.006823]
[1724748052505,1.253188,62871.0,62870.0,0.004823]
[1724748052744,1.253188,62871.0,62870.0,0.006823]
[1724748052988,1.253188,62871.0,62870.0,0.002823]
[1724748053237,1.253188,62871.0,62870.0,0.000823]
[1724748053484,1.253188,62871.0,62870.0,0.004823]
[1724748053719,1.253188,62871.0,62870.0,0.000823]
[1724748054415,1.255188,62871.0,62870.0,0.000823]
[1724748054657,1.257188,62871.0,62870.0,0.000823]
[1724748054867,1.255188,62871.0,62870.0,0.000823]
[1724748055111,1.253188,62871.0,62870.0,0.000823]
[1724748055345,1.254188,62871.0,62870.0,0.000823]
[1724748056054,1.34112658,62871.0,62870.0,0.001823]
[1724748058925,1.254188,62871.0,62870.0,0.001823]
[1724748065413,1.253188,62871.0,62870.0,0.001823]
[1724748065899,1.253188,62871.0,62870.0,0.003823]
[1724748066608,1.253188,62871.0,62870.0,0.002823]
[1724748067084,1.253188,62871.0,62870.0,0.006823]
[1724748069782,0.935077,62871.0,62870.0,0.006823]
[1724748074535,0.98238574,62871.0,62870.0,0.006823]
[1724748075247,1.30049674,62871.0,62870.0,0.006823]
[1724748075701,1.32415111,62871.0,62870.0,0.006823]
[1724748076617,1.34780548,62871.0,62870.0,0.006823]
[1724748076837,1.253188,62871.0,62870.0,0.004823]
[1724748077319,1.253188,62871.0,62870.0,0.001823]
[1724748077537,1.253188,62871.0,62870.0,0.004823]
[1724748077754,1.253188,62871.0,62870.0,0.000823]
[1724748077993,1.254188,62871.0,62870.0,0.000823]
[1724748078431,1.34112658,62871.0,62870.0,0.000823]
[1724748081886,1.65923758,62871.0,62870.0,0.000823]
[1724748082113,2.38021845,62871.0,62870.0,0.000823]
[1724748082394,2.38021845,62871.0,62869.0,0.0040569]
[1724748082395,2.07877547,62871.0,62869.0,0.0040569]
[1724748082609,1.35613289,62870.0,62869.0,0.0040569]
[1724748082825,1.991938,62870.0,62869.0,0.0040569]
[1724748084222,1.993938,62870.0,62869.0,0.0050569]
[1724748084652,1.991938,62870.0,62869.0,0.0040569]
[1724748085095,1.674822,62870.0,62869.0,0.0050569]
[1724748085305,2.15308904,62870.0,62869.0,0.0050569]
[1724748085558,1.992938,62870.0,62869.0,0.0050569]
[1724748086010,2.000938,62870.0,62869.0,0.0060569]
[1724748086252,1.682822,62870.0,62869.0,0.0060569]
[1724748097390,1.364706,62870.0,62869.0,0.0060569]
[1724748097594,1.45164458,62870.0,62869.0,0.0060569]
[1724748101315,1.364706,62870.0,62869.0,0.0060569]
[1724748101472,1.45164458,62870.0,62869.0,0.0060569]
[1724748101813,1.364706,62870.0,62869.0,0.0060569]
[1724748102019,1.45164458,62870.0,62869.0,0.0060569]
[1724748102580,1.364706,62870.0,62869.0,0.0060569]
[1724748102819,1.45164458,62870.0,62869.0,0.0060569]
[1724748108332,1.54641761,62870.0,62869.0,0.0060569]
[1724748108547,1.86453361,62870.0,62869.0,0.0060569]
[1724748108768,1.54641761,62870.0,62869.0,0.0060569]
[1724748109189,1.86453361,62870.0,62869.0,0.0060569]
[1724748112362,1.76976058,62870.0,62869.0,0.0060569]
[1724748113693,1.77066588,62870.0,62869.0,0.0060569]
[1724748114378,1.88917232,62870.0,62869.0,0.0060569]
[1724748114632,1.77066588,62870.0,62869.0,0.0060569]
[1724748115506,1.91288501,62870.0,62869.0,0.0060569]
[1724748115714,1.77066588,62870.0,62869.0,0.0060569]
[1724748116377,2.08878188,62870.0,62869.0,0.0060569]
[1724748116788,1.91289764,62870.0,62869.0,0.0060569]
[1724748116988,2.23101364,62870.0,62869.0,0.0060569]
[1724748117195,1.91289764,62870.0,62869.0,0.0060569]
[1724748117621,1.77066588,62870.0,62869.0,0.0060569]
[1724748118011,1.91292548,62870.0,62869.0,0.0060569]
[1724748118233,1.77066588,62870.0,62869.0,0.0060569]
[1724748118452,2.23106359,62870.0,62869.0,0.0060569]
[1724748118664,1.77066588,62870.0,62869.0,0.0060569]
[1724748119773,1.92951076,62870.0,62869.0,0.0060569]
[1724748120181,2.24762676,62870.0,62869.0,0.0055569]
[1724748122398,2.08878188,62870.0,62869.0,0.0055569]
[1724748124440,1.77066588,62870.0,62869.0,0.0055569]
[1724748124644,1.6837273,62870.0,62869.0,0.0055569]
[1724748124852,1.91303583,62870.0,62869.0,0.0055569]
[1724748125275,1.91305312,62870.0,62869.0,0.0055569]
[1724748125697,1.77066588,62870.0,62869.0,0.0055569]
[1724748126534,1.45254988,62870.0,62869.0,0.0055569]
[1724748126749,1.2243113,62870.0,62869.0,0.0055569]
[1724748127172,1.34300629,62870.0,62869.0,0.0055569]
[1724748127806,1.34300629,62870.0,62869.0,0.0045569]
[1724748127807,1.34200629,62870.0,62869.0,0.0045569]
[1724748128011,1.310273,62870.0,62869.0,0.0035569]
[1724748128224,1.320273,62870.0,62869.0,0.0035569]
[1724748128453,1.2253113,62870.0,62869.0,0.0035569]
[1724748128868,1.2193113,62870.0,62869.0,0.0035569]
[1724748129080,1.2203113,62870.0,62869.0,0.0035569]
[1724748129515,1.2153113,62870.0,62869.0,0.0035569]
[1724748129726,1.2153113,62870.0,62869.0,0.0065569]
[1724748130138,1.2153113,62870.0,62869.0,0.0035569]
[1724748130358,1.37656299,62870.0,62869.0,0.0065569]
[1724748130572,1.37656299,62870.0,62869.0,0.0035569]
[1724748130573,1.40030091,62870.0,62869.0,0.0035569]
[1724748131045,1.40030091,62870.0,62869.0,0.0065569]
[1724748131279,1.40030091,62870.0,62869.0,0.0035569]
[1724748131505,1.40030091,62870.0,62869.0,0.0045569]
[1724748132125,1.40030091,62870.0,62869.0,0.0035569]
[1724748132325,1.40130091,62870.0,62869.0,0.0035569]
[1724748132949,1.40030091,62870.0,62869.0,0.0035569]
[1724748133150,1.40030091,62870.0,62869.0,0.0055569]
[1724748133410,1.40230091,62870.0,62869.0,0.0055569]
[1724748133866,1.40230091,62870.0,62869.0,0.0035569]
[1724748134246,1.40230091,62870.0,62869.0,0.0045569]
[1724748134397,1.40230091,62870.0,62869.0,0.0035569]
[1724748134609,1.40030091,62870.0,62869.0,0.0035569]
[1724748134832,1.37656895,62870.0,62869.0,0.0035569]
[1724748135050,1.37756895,62870.0,62869.0,0.0035569]
[1724748135460,1.37656895,62870.0,62869.0,0.0035569]
[1724748135665,1.40230091,62870.0,62869.0,0.0035569]
[1724748136546,1.40030091,62870.0,62869.0,0.0035569]
[1724748136773,1.40010947,62870.0,62869.0,0.0035569]
[1724748137918,1.79802547,62870.0,62869.0,0.0035569]
[1724748138134,1.67933586,62870.0,62869.0,0.0035569]
[1724748138347,1.68233586,62870.0,62869.0,0.0035569]
[1724748138837,1.67933586,62870.0,62869.0,0.0035569]
[1724748139251,1.68133586,62870.0,62869.0,0.0035569]
[1724748139669,1.67933586,62870.0,62869.0,0.0035569]
[1724748140132,1.68633586,62870.0,62869.0,0.0045569]
[1724748140566,1.69133586,62870.0,62869.0,0.0045569]
[1724748140794,1.68633586,62870.0,62869.0,0.0045569]
[1724748141228,1.69133586,62870.0,62869.0,0.0055569]
[1724748141447,1.69133586,62870.0,62869.0,0.0045569]
[1724748141448,1.68433586,62870.0,62869.0,0.0045569]
[1724748141864,1.69433586,62870.0,62869.0,0.0055569]
[1724748142291,1.85456684,62870.0,62869.0,0.0055569]
[1724748142739,1.69433586,62870.0,62869.0,0.0055569]
[1724748148130,1.85458982,62870.0,62869.0,0.0055569]
[1724748148357,1.69433586,62870.0,62869.0,0.0055569]
[1724748152332,1.70256586,62870.0,62869.0,0.0055569]
[1724748158676,2.18076222,62870.0,62869.0,0.0055569]
[1724748159728,2.17076222,62870.0,62869.0,0.0045569]
[1724748159943,2.01191734,62870.0,62869.0,0.0045569]
[1724748160593,2.01191734,62870.0,62869.0,0.0035569]
[1724748160594,2.00691734,62870.0,62869.0,0.0035569]
[1724748161065,2.03491734,62870.0,62869.0,0.0045569]
[1724748162409,2.12871617,62870.0,62869.0,0.0045569]
[1724748164367,2.03491734,62870.0,62869.0,0.0045569]
[1724748166471,1.69507758,62865.0,62864.0,0.000823]
[1724748166701,1.79631306,62865.0,62864.0,0.000823]
[1724748166940,2.11445506,62865.0,62864.0,0.000823]
[1724748167198,2.27329994,62865.0,62864.0,0.000823]
[1724748167857,2.28329994,62865.0,62864.0,0.000823]
[1724748168107,2.29229994,62865.0,62864.0,0.001823]
[1724748169518,2.13345506,62865.0,62864.0,0.001823]
[1724748170035,2.13221958,62865.0,62864.0,0.001823]
[1724748170236,2.13345506,62865.0,62864.0,0.001823]
[1724748173686,2.45159706,62865.0,62864.0,0.001823]
[1724748174673,2.44159706,62865.0,62864.0,0.001823]
[1724748174911,2.59144194,62865.0,62864.0,0.000823]
[1724748175125,2.60544194,62865.0,62864.0,0.001823]
[1724748175356,2.61944194,62865.0,62864.0,0.001823]
[1724748182494,2.61844194,62865.0,62864.0,0.001823]
[1724748182701,2.14245506,62865.0,62864.0,0.001823]
[1724748183101,2.30247803,62865.0,62864.0,0.001823]
[1724748183299,2.30147803,62865.0,62864.0,0.001823]
[1724748183500,2.30224255,62865.0,62864.0,0.001823]
[1724748183724,2.30247803,62865.0,62864.0,0.001823]
[1724748183887,2.30129994,62865.0,62864.0,0.001823]
[1724748184085,2.46132291,62865.0,62864.0,0.001823]
[1724748185297,2.461379,62865.0,62864.0,0.001823]
[1724748185923,2.30129864,62865.0,62864.0,0.001823]
[1724748189114,2.14121958,62865.0,62864.0,0.001823]
[1724748189967,2.12721958,62865.0,62864.0,0.001823]
[1724748190412,2.04651958,62865.0,62864.0,0.000823]
[1724748190660,1.590639,62865.0,62864.0,0.000823]
[1724748190869,1.66357758,62865.0,62864.0,0.000823]